bitfinex-derivatives/quotes_BTCF0:USTF0_20250710
["timestamp","ask_amount","ask_price","bid_price","bid_amount"]
[1752169132505,0.35589268,113650.0,113640.0,1.75760425]
[1752169135908,0.18000988,113650.0,113640.0,1.75760425]
[1752169136312,0.35589268,113650.0,113640.0,1.75760425]
[1752169137911,0.18000988,113650.0,113640.0,1.75760425]
[1752169138113,0.02001988,113650.0,113640.0,1.75760425]
[1752169138413,0.02001988,113650.0,113640.0,1.95820425]
[1752169138810,0.05428988,113650.0,113640.0,1.95820425]
[1752169139013,0.03843582,113680.0,113660.0,0.04892]
[1752169139218,0.00288,113680.0,113670.0,2.28744302]
[1752169139407,0.002,113680.0,113670.0,2.43924302]
[1752169139719,0.1778364,113680.0,113670.0,2.43924302]
[1752169140111,0.003,113680.0,113670.0,2.43924302]
[1752169140513,0.1788364,113680.0,113670.0,2.43924302]
[1752169141012,0.2131064,113680.0,113670.0,2.43924302]
[1752169141920,0.2358264,113680.0,113670.0,1.97760302]
[1752169142121,0.3368264,113680.0,113670.0,1.97760302]
[1752169143014,0.6976264,113680.0,113670.0,0.9194818]
[1752169143719,0.6976264,113680.0,113670.0,0.12299]
[1752169143916,0.1985718,113670.0,113660.0,0.71459941]
[1752169144108,0.1985718,113670.0,113660.0,1.79599941]
[1752169144109,0.2814418,113670.0,113660.0,1.79599941]
[1752169144311,0.6939418,113670.0,113660.0,1.43519941]
[1752169144815,0.3331418,113670.0,113660.0,1.46112941]
[1752169145815,0.3331418,113670.0,113660.0,0.42913819]
[1752169146019,0.3341418,113670.0,113660.0,1.46104941]
[1752169147516,0.3341418,113670.0,113660.0,1.82184941]
[1752169147719,0.3341418,113670.0,113660.0,1.87434941]
[1752169148421,0.001,113670.0,113660.0,1.87434941]
[1752169148717,0.001,113670.0,113660.0,2.02434941]
[1752169150426,0.002,113680.0,113670.0,0.2237718]
[1752169150625,0.002,113680.0,113670.0,1.19876302]
[1752169150920,0.02174437,113680.0,113670.0,1.19876302]
[1752169155022,0.19758077,113680.0,113670.0,1.19876302]
[1752169155218,0.23304077,113680.0,113670.0,1.19876302]
[1752169155620,0.05720437,113680.0,113670.0,1.19876302]
[1752169156125,0.02174437,113680.0,113670.0,1.19876302]
[1752169156521,0.02174437,113680.0,113670.0,1.29876302]
[1752169157816,0.002,113690.0,113680.0,0.1758364]
[1752169158021,0.002,113690.0,113680.0,2.31045227]
[1752169158227,0.03746,113690.0,113680.0,2.31045227]
[1752169158626,0.03746,113690.0,113680.0,2.60355227]
[1752169159322,0.03746,113690.0,113680.0,2.6152998]
[1752169161024,0.03746,113690.0,113680.0,2.46703828]
[1752169161227,0.002,113690.0,113680.0,2.46703828]
[1752169161426,0.002,113690.0,113680.0,2.56703828]
[1752169161624,0.002,113690.0,113680.0,2.66703828]
[1752169161826,0.002,113690.0,113680.0,2.93016798]
[1752169162328,0.002,113690.0,113680.0,2.66703828]
[1752169162831,0.2368245,113720.0,113710.0,0.17622]
[1752169163027,0.6470245,113720.0,113710.0,1.5033197]
[1752169163227,0.6983645,113720.0,113710.0,1.6791097]
[1752169163617,0.6983645,113720.0,113710.0,1.74953862]
[1752169164024,0.16179,113720.0,113710.0,1.84742892]
[1752169164225,0.16095,113720.0,113710.0,2.11055862]
[1752169164632,0.16095,113720.0,113710.0,2.16225862]
[1752169165124,0.11155,113720.0,113710.0,2.16225862]
[1752169165425,0.002,113720.0,113710.0,2.16225862]
[1752169165630,0.2368245,113720.0,113710.0,2.26225862]
[1752169165834,0.06105,113720.0,113710.0,2.26225862]
[1752169166023,0.16075,113720.0,113710.0,2.26225862]
[1752169166531,0.08696,113720.0,113710.0,2.31385862]
[1752169166919,0.08696,113720.0,113710.0,2.46167258]
[1752169169526,0.002,113720.0,113710.0,2.46167258]
[1752169169723,0.002,113720.0,113710.0,2.56167258]
[1752169169930,0.02155807,113720.0,113710.0,2.56167258]
[1752169170436,0.02155807,113720.0,113710.0,2.85477258]
[1752169171829,0.02155807,113720.0,113710.0,2.44382892]
[1752169172137,0.08060807,113720.0,113710.0,4.25477258]
[1752169172331,0.13150807,113720.0,113710.0,4.25477258]
[1752169172526,0.13150807,113720.0,113710.0,3.84382892]
[1752169172732,0.13150807,113720.0,113710.0,4.25477258]
[1752169173431,0.05701807,113720.0,113710.0,4.25477258]
[1752169173633,0.05701807,113720.0,113710.0,4.35477258]
[1752169173832,0.02155807,113720.0,113710.0,4.35477258]
[1752169175333,0.02137807,113720.0,113710.0,4.35477258]
[1752169176535,0.02141807,113720.0,113710.0,4.35477258]
[1752169180441,0.002,113730.0,113720.0,0.1757743]
[1752169180638,1e-07,113730.0,113720.0,2.49976525]
[1752169181046,1e-07,113730.0,113720.0,3.99976525]
[1752169181735,1e-07,113730.0,113720.0,4.08882159]
[1752169181935,1e-07,113730.0,113720.0,4.49976525]
[1752169182135,1e-07,113730.0,113720.0,4.49960525]
[1752169182442,1e-07,113730.0,113720.0,4.49956525]
[1752169183439,1e-07,113730.0,113720.0,3.99956525]
[1752169183755,0.234139,113730.0,113720.0,1.27196159]
[1752169183944,0.335739,113730.0,113720.0,0.91112159]
[1752169184143,0.335739,113730.0,113720.0,0.2757743]
[1752169184343,0.33661901,113730.0,113720.0,0.8946143]
[1752169184749,0.16086011,113730.0,113720.0,1.66635796]
[1752169184944,0.1599801,113730.0,113720.0,1.04751796]
[1752169185145,0.1599801,113730.0,113720.0,1.66631796]
[1752169187254,0.335739,113730.0,113720.0,1.66631796]
[1752169188161,0.335739,113730.0,113720.0,0.8944943]
[1752169188361,0.696539,113730.0,113720.0,0.8944943]
[1752169188562,0.696579,113730.0,113720.0,0.8944943]
[1752169188758,0.335779,113730.0,113720.0,0.8944943]
[1752169188962,0.335779,113730.0,113720.0,0.7944943]
[1752169189265,0.336619,113730.0,113720.0,0.8944943]
[1752169190455,0.336619,113730.0,113720.0,1.15753162]
[1752169190652,0.697419,113730.0,113720.0,0.8944543]
[1752169190856,0.96045632,113730.0,113720.0,0.8944543]
[1752169191664,1.0077905,113730.0,113720.0,0.8944543]
[1752169191860,1.0077905,113730.0,113720.0,0.2757743]
[1752169192163,1.4336545,113730.0,113720.0,0.1]
[1752169192457,1.45321967,113730.0,113720.0,0.1]
[1752169192662,1.40588549,113730.0,113720.0,0.1]
[1752169193066,1.45325872,113730.0,113720.0,0.2757743]
[1752169193960,1.40588549,113730.0,113720.0,0.2757743]
[1752169194151,1.14284817,113730.0,113720.0,0.2757743]
[1752169194359,0.89284817,113730.0,113720.0,0.2757743]
[1752169195065,1.16733031,113730.0,113720.0,0.1]
[1752169195261,1.16733031,113730.0,113720.0,0.2757743]
[1752169195462,0.90429299,113730.0,113720.0,0.2757743]
[1752169195666,0.97398265,113730.0,113720.0,0.2757743]
[1752169195858,0.97398265,113730.0,113720.0,0.1]
[1752169196260,1.23701997,113730.0,113720.0,0.1]
[1752169197065,1.23701997,113730.0,113720.0,0.2757743]
[1752169197772,0.96253783,113730.0,113720.0,0.2757743]
[1752169198660,0.78667383,113730.0,113720.0,0.2757743]
[1752169198860,0.83402828,113730.0,113720.0,0.2757743]
[1752169200167,0.83402828,113730.0,113720.0,0.53881162]
[1752169203264,0.71403862,113730.0,113720.0,0.53881162]
[1752169203466,0.30588417,113730.0,113720.0,1.00181162]
[1752169203775,0.30504417,113730.0,113720.0,1.00181162]
[1752169204167,0.73729716,113730.0,113720.0,0.1]
[1752169204470,1.09916894,113730.0,113720.0,0.1]
[1752169205072,1.27503294,113730.0,113720.0,0.1]
[1752169205476,1.22767849,113730.0,113720.0,0.1]
[1752169205676,0.1986943,113720.0,113710.0,0.61824]
[1752169205977,1.02742686,113720.0,113710.0,0.61824]
[1752169206368,0.76438954,113720.0,113710.0,0.61824]
[1752169206570,0.76522954,113720.0,113710.0,0.61824]
[1752169207067,0.76412387,113720.0,113710.0,0.61824]
[1752169207878,0.76412387,113720.0,113710.0,0.7940298]
[1752169208177,0.76412387,113720.0,113710.0,0.61824]
[1752169208682,0.2344152,113700.0,113690.0,1.05249896]
[1752169208868,0.25398037,113700.0,113690.0,0.99877738]
[1752169209069,0.3350152,113700.0,113690.0,1.42148252]
[1752169209272,0.35465228,113700.0,113690.0,1.42148252]
[1752169209569,0.35465228,113700.0,113690.0,1.46918252]
[1752169209768,0.30385228,113700.0,113690.0,1.46918252]
[1752169210070,0.07824708,113700.0,113690.0,1.51758252]
[1752169210477,0.25405228,113700.0,113690.0,1.51758252]
[1752169210676,0.07824708,113700.0,113690.0,1.51758252]
[1752169210873,0.07824708,113700.0,113690.0,1.87838252]
[1752169211077,0.25405228,113700.0,113690.0,1.51758252]
[1752169211668,0.05532708,113700.0,113690.0,1.87838252]
[1752169211873,0.19544228,113700.0,113690.0,1.87838252]
[1752169212074,0.25405228,113700.0,113690.0,1.51758252]
[1752169212878,0.05532708,113700.0,113690.0,1.87838252]
[1752169213078,0.01963708,113700.0,113690.0,1.87826252]
[1752169213478,0.01963708,113700.0,113690.0,1.87926252]
[1752169213781,0.01963708,113700.0,113690.0,1.97926252]
[1752169213974,0.01963708,113700.0,113690.0,1.87926252]
[1752169214976,0.01963708,113700.0,113690.0,2.27236252]
[1752169215378,0.05484708,113700.0,113690.0,2.17336252]
[1752169215984,0.05484708,113700.0,113690.0,2.27336252]
[1752169216178,0.05489146,113700.0,113690.0,2.27336252]
[1752169216380,0.05489146,113700.0,113690.0,2.17336252]
[1752169217779,0.25434666,113700.0,113690.0,1.81256252]
[1752169217980,0.25434666,113700.0,113690.0,2.17336252]
[1752169218179,0.25434666,113700.0,113690.0,1.55528252]
[1752169218386,0.25434666,113700.0,113690.0,1.53841824]
[1752169218682,0.25434666,113700.0,113690.0,2.15633824]
[1752169220186,0.12804146,113700.0,113690.0,2.15633824]
[1752169220485,0.17538153,113700.0,113690.0,2.15633824]
[1752169220678,0.17538153,113700.0,113690.0,1.86323824]
[1752169220878,0.12588153,113700.0,113690.0,1.86323824]
[1752169222086,0.12588153,113700.0,113690.0,1.24531824]
[1752169222283,0.12588153,113700.0,113690.0,1.86315824]
[1752169223281,0.10620007,113700.0,113690.0,1.86315824]
[1752169223587,0.12590692,113700.0,113690.0,1.86315824]
[1752169223987,0.07856685,113700.0,113690.0,1.86315824]
[1752169224795,0.05491685,113700.0,113690.0,1.86315824]
[1752169225691,0.01970685,113700.0,113690.0,1.86315824]
[1752169226698,0.01970685,113700.0,113690.0,2.15625824]
[1752169227783,0.05491685,113700.0,113690.0,2.15625824]
[1752169228390,0.10225692,113700.0,113690.0,2.15625824]
[1752169228891,0.05491685,113700.0,113690.0,2.00821221]
[1752169229587,0.05491685,113700.0,113690.0,2.27128776]
[1752169232493,0.05491685,113700.0,113690.0,2.00821221]
[1752169233294,0.05491685,113700.0,113690.0,2.27128776]
[1752169233488,0.01970685,113700.0,113690.0,2.27128776]
[1752169233695,0.01970685,113700.0,113690.0,2.37128776]
[1752169233892,0.03521,113720.0,113710.0,0.1757898]
[1752169234097,0.0589001,113730.0,113720.0,0.1757743]
[1752169234296,0.10624017,113730.0,113720.0,0.89474985]
[1752169235401,0.08259017,113730.0,113720.0,1.2578254]
[1752169235889,0.04738017,113730.0,113720.0,1.3578254]
[1752169236294,0.04738017,113730.0,113720.0,1.2578254]
[1752169237394,0.04738017,113730.0,113720.0,0.99474985]
[1752169238591,0.04738017,113730.0,113720.0,0.7316743]
[1752169238897,0.04738017,113730.0,113720.0,0.99474985]
[1752169239394,0.04738017,113730.0,113720.0,1.2578254]
[1752169239589,4.01e-05,113730.0,113720.0,1.2578254]
[1752169239791,4.01e-05,113730.0,113720.0,1.3578254]
[1752169240490,4.01e-05,113730.0,113720.0,1.6509254]
[1752169241100,0.09314007,113750.0,113740.0,0.1757434]
[1752169241292,0.09314007,113750.0,113740.0,2.47452653]
[1752169241493,0.0458,113750.0,113740.0,2.56832653]
[1752169241993,0.0458,113750.0,113740.0,2.52092653]
[1752169242202,0.0911,113750.0,113740.0,2.52092653]
[1752169243401,0.0911,113750.0,113740.0,2.58954367]
[1752169243591,0.0911,113750.0,113740.0,2.60048717]
[1752169243798,0.0911,113750.0,113740.0,2.53187003]
[1752169245902,0.11038138,113750.0,113740.0,2.53187003]
[1752169246797,0.01928138,113750.0,113740.0,2.53187003]
[1752169246998,0.01928138,113750.0,113740.0,2.67687003]
[1752169247603,0.11458138,113750.0,113740.0,2.63187003]
[1752169248402,0.11458138,113750.0,113740.0,2.70090598]
[1752169250298,0.11458138,113750.0,113740.0,2.40780598]
[1752169252305,0.01928138,113750.0,113740.0,2.40780598]
[1752169252599,0.01928138,113750.0,113740.0,2.45410598]
[1752169253201,0.06488138,113750.0,113740.0,2.45410598]
[1752169253898,0.24060948,113750.0,113740.0,2.40780598]
[1752169254100,0.64620948,113750.0,113740.0,1.57773935]
[1752169254605,0.64704948,113750.0,113740.0,1.57773935]
[1752169255197,0.64704948,113750.0,113740.0,0.1]
[1752169255405,1.53090469,113750.0,113740.0,0.1]
[1752169255603,0.1757434,113740.0,113730.0,0.6127968]
[1752169255797,0.69296485,113740.0,113730.0,1.1292368]
[1752169256101,1.27949598,113740.0,113730.0,0.1]
[1752169256299,0.1757589,113730.0,113720.0,0.9239891]
[1752169256499,0.10908138,113730.0,113720.0,1.33467223]
[1752169256695,0.64564028,113730.0,113720.0,1.33467223]
[1752169256899,0.64564028,113730.0,113720.0,0.81827223]
[1752169257207,0.64564028,113730.0,113720.0,0.9800456]
[1752169257400,0.64564028,113730.0,113720.0,1.39072873]
[1752169258003,0.64648028,113730.0,113720.0,1.39072873]
[1752169258701,0.69382035,113730.0,113720.0,1.39072873]
[1752169258906,0.64648028,113730.0,113720.0,1.39072873]
[1752169259105,0.28568028,113730.0,113720.0,1.39072873]
[1752169259308,0.28484028,113730.0,113720.0,1.39072873]
[1752169259807,0.64564028,113730.0,113720.0,1.34678593]
[1752169260306,0.64564028,113730.0,113720.0,0.73038593]
[1752169260500,0.64564028,113730.0,113720.0,1.34670593]
[1752169260692,0.64656028,113730.0,113720.0,1.34670593]
[1752169262407,0.64656028,113730.0,113720.0,0.73038593]
[1752169262606,0.64656028,113730.0,113720.0,1.34662593]
[1752169262805,0.69390035,113730.0,113720.0,1.19897576]
[1752169264504,0.64656028,113730.0,113720.0,1.19897576]
[1752169264903,0.28576028,113730.0,113720.0,0.58273576]
[1752169265106,0.28484028,113730.0,113720.0,1.19897576]
[1752169265696,0.10908138,113730.0,113720.0,1.19897576]
[1752169265903,0.24044028,113730.0,113720.0,1.86970872]
[1752169266098,0.06468138,113730.0,113720.0,1.65437576]
[1752169266803,0.01928138,113730.0,113720.0,1.91740872]
[1752169267902,0.01928138,113730.0,113720.0,2.31050872]
[1752169268907,0.01928138,113730.0,113720.0,2.67130872]
[1752169277314,0.0474,113750.0,113740.0,0.1757434]
[1752169277508,0.0474,113750.0,113740.0,2.13117636]
[1752169277704,0.0474,113750.0,113740.0,2.22597636]
[1752169278307,0.09474007,113750.0,113740.0,2.22597636]
[1752169278506,0.27046807,113750.0,113740.0,2.13117636]
[1752169278705,0.223128,113750.0,113740.0,2.13117636]
[1752169278908,0.271428,113750.0,113740.0,2.13117636]
[1752169281209,0.271428,113750.0,113740.0,0.89957636]
[1752169281405,0.271428,113750.0,113740.0,0.8913434]
[1752169281603,0.271428,113750.0,113740.0,1.15437636]
[1752169282108,0.271428,113750.0,113740.0,1.15433636]
[1752169284112,0.271428,113750.0,113740.0,1.22509701]
[1752169285616,0.271428,113750.0,113740.0,1.04935361]
[1752169286716,0.632228,113750.0,113740.0,1.04935361]
[1752169286917,0.633068,113750.0,113740.0,1.04923361]
[1752169287716,0.89610096,113750.0,113740.0,0.1]
[1752169287906,1.07193297,113750.0,113740.0,0.1]
[1752169288106,1.11927304,113750.0,113740.0,0.1]
[1752169288313,0.1757588,113730.0,113720.0,0.57296232]
[1752169288510,0.5365588,113730.0,113720.0,0.67296232]
[1752169288710,0.6299588,113730.0,113720.0,0.99518232]
[1752169289015,0.31649434,113730.0,113720.0,0.99518232]
[1752169289217,0.31649434,113730.0,113720.0,0.97835296]
[1752169289218,0.31733434,113730.0,113720.0,0.97835296]
[1752169289413,0.69737726,113730.0,113720.0,0.36303296]
[1752169289614,0.69737726,113730.0,113720.0,0.97831296]
[1752169289809,0.33657726,113730.0,113720.0,0.97831296]
[1752169290014,0.69737726,113730.0,113720.0,0.97831296]
[1752169291108,1.14714138,113730.0,113720.0,0.1]
[1752169291313,0.2197443,113710.0,113700.0,0.26303296]
[1752169291614,0.59978722,113710.0,113700.0,0.61524]
[1752169291816,0.60066723,113710.0,113700.0,0.87827296]
[1752169292016,0.69086723,113710.0,113700.0,0.87827296]
[1752169292219,0.33006723,113710.0,113700.0,1.05408136]
[1752169292413,0.33006723,113710.0,113700.0,0.43884136]
[1752169292613,0.33006723,113710.0,113700.0,1.05404136]
[1752169292915,0.69086723,113710.0,113700.0,0.87831296]
[1752169293121,0.69086723,113710.0,113690.0,0.59808641]
[1752169293320,0.69086723,113710.0,113690.0,0.43505345]
[1752169293321,0.2660084,113700.0,113690.0,0.43505345]
[1752169293616,0.64605132,113700.0,113690.0,0.30318825]
[1752169293823,0.64689132,113700.0,113690.0,0.91842825]
[1752169294219,0.64689132,113700.0,113690.0,0.11095045]
[1752169294524,0.1758238,113690.0,113680.0,0.10175925]
[1752169294725,0.64606672,113690.0,113680.0,0.10175925]
[1752169295024,0.64694673,113690.0,113680.0,0.54063151]
[1752169295417,0.9206143,113690.0,113680.0,0.10175925]
[1752169295622,0.9206143,113690.0,113680.0,0.17759855]
[1752169296019,0.11032293,113690.0,113680.0,0.44063151]
[1752169296219,0.28526672,113690.0,113680.0,0.44063151]
[1752169296821,0.28526672,113690.0,113680.0,1.20403302]
[1752169297019,0.64606672,113690.0,113680.0,1.20403302]
[1752169297623,0.64621133,113690.0,113680.0,0.58879302]
[1752169297823,0.28541133,113690.0,113680.0,0.58879302]
[1752169298022,0.71637468,113690.0,113680.0,0.58879302]
[1752169298216,0.71721468,113690.0,113680.0,0.58879302]
[1752169299217,0.35641468,113690.0,113680.0,0.58879302]
[1752169299614,0.35641468,113690.0,113680.0,0.17759855]
[1752169299819,0.35641468,113690.0,113680.0,0.58879302]
[1752169300221,0.35641468,113690.0,113680.0,0.17759855]
[1752169300427,0.35641468,113690.0,113680.0,0.58879302]
[1752169300922,0.01938753,113690.0,113680.0,0.94959302]
[1752169301127,0.0453,113700.0,113690.0,0.1758233]
[1752169301324,0.06385874,113700.0,113690.0,1.60827777]
[1752169301524,0.046,113710.0,113700.0,0.1758079]
[1752169301724,0.06473566,113710.0,113700.0,0.94780237]
[1752169301924,0.06473566,113710.0,113700.0,0.99310237]
[1752169302319,0.06473566,113710.0,113700.0,1.00406614]
[1752169302525,0.01943566,113710.0,113700.0,1.05016614]
[1752169302722,0.00088001,113710.0,113700.0,1.05016614]
[1752169304033,0.3110216,113720.0,113710.0,0.1757924]
[1752169304228,0.06385592,113720.0,113710.0,1.60904687]
[1752169304733,0.01855592,113720.0,113710.0,1.65444687]
[1752169304934,0.01855592,113720.0,113710.0,1.75444687]
[1752169305129,0.01955592,113720.0,113710.0,1.75444687]
[1752169305536,0.001,113720.0,113710.0,1.75444687]
[1752169306230,0.1767771,113720.0,113710.0,1.75444687]
[1752169306439,0.001,113720.0,113710.0,1.75444687]
[1752169306934,0.01951373,113720.0,113710.0,1.75444687]
[1752169307330,0.19529083,113720.0,113710.0,1.75444687]
[1752169307533,0.23819083,113720.0,113710.0,1.2978524]
[1752169307833,0.28459083,113720.0,113710.0,0.9370524]
[1752169308223,0.28459083,113720.0,113710.0,1.34824687]
[1752169309433,0.28460418,113720.0,113710.0,1.34824687]
[1752169310340,0.64540418,113720.0,113710.0,0.2757924]
[1752169310532,0.64624418,113720.0,113710.0,0.8906724]
[1752169310728,0.26784418,113720.0,113710.0,0.8906724]
[1752169310934,0.26700418,113720.0,113710.0,0.8906724]
[1752169311136,0.26704418,113720.0,113710.0,0.8906724]
[1752169311334,0.62784418,113720.0,113710.0,0.8906724]
[1752169312440,0.59804418,113720.0,113710.0,1.30186687]
[1752169312631,0.19534418,113720.0,113710.0,1.39036687]
[1752169313035,0.01956708,113720.0,113710.0,1.75916687]
[1752169314236,0.19434418,113720.0,113710.0,1.75916687]
[1752169314442,0.19434418,113720.0,113710.0,1.76516687]
[1752169315134,0.24167821,113720.0,113710.0,1.75916687]
[1752169315330,0.24167821,113720.0,113710.0,1.13628687]
[1752169315643,0.24167821,113720.0,113710.0,1.39024687]
[1752169315842,0.60247821,113720.0,113710.0,1.39024687]
[1752169316534,0.24251821,113720.0,113710.0,1.39024687]
[1752169316735,0.24167821,113720.0,113710.0,1.39024687]
[1752169318437,0.24167821,113720.0,113710.0,1.75104687]
[1752169318838,0.19434418,113720.0,113710.0,1.75104687]
[1752169324038,0.01856708,113720.0,113710.0,1.75104687]
[1752169325348,0.01856708,113720.0,113710.0,1.60286977]
[1752169326547,0.19434408,113720.0,113710.0,1.60286977]
[1752169326944,0.23894408,113720.0,113710.0,1.60286977]
[1752169330346,0.11050111,113720.0,113710.0,1.60286977]
[1752169330553,0.06316708,113720.0,113710.0,1.60286977]
[1752169331347,0.23894418,113720.0,113710.0,0.4608]
[1752169331649,0.51680111,113720.0,113710.0,0.43880987]
[1752169331857,0.15600111,113720.0,113710.0,1.41380987]
[1752169332052,0.33261821,113720.0,113710.0,1.45830987]
[1752169332352,0.33177821,113720.0,113710.0,1.09750987]
[1752169332549,0.33177821,113720.0,113710.0,1.78045824]
[1752169332550,0.23894418,113720.0,113710.0,1.78045824]
[1752169332751,0.23894418,113720.0,113710.0,2.14125824]
[1752169332955,0.11062045,113720.0,113710.0,2.28305824]
[1752169333149,0.24179755,113720.0,113710.0,2.28305824]
[1752169333853,0.24179755,113720.0,113710.0,2.28405824]
[1752169334757,0.24179755,113720.0,113710.0,2.28505824]
[1752169335250,0.24179755,113720.0,113710.0,0.39104087]
[1752169335554,0.33049755,113720.0,113710.0,1.26817824]
[1752169335756,0.33049755,113720.0,113710.0,1.22367824]
[1752169336054,0.59351492,113720.0,113710.0,0.8919125]
[1752169336250,0.95519493,113720.0,113710.0,0.002]
[1752169336452,0.90774156,113720.0,113710.0,0.002]
[1752169336851,1.14685461,113720.0,113710.0,0.002]
[1752169337253,1.14688215,113720.0,113710.0,0.002]
[1752169338455,1.76096215,113720.0,113710.0,0.002]
[1752169339357,1.76092215,113720.0,113710.0,0.002]
[1752169340047,1.69766156,113720.0,113710.0,0.002]
[1752169340252,0.1758235,113690.0,113680.0,0.00175925]
[1752169340452,0.81816795,113690.0,113680.0,0.10175925]
[1752169340651,0.95160564,113690.0,113680.0,0.00175925]
[1752169340851,0.90420795,113690.0,113680.0,0.00175925]
[1752169341254,0.95158099,113690.0,113680.0,0.00575925]
[1752169341761,0.95158099,113690.0,113680.0,0.00975925]
[1752169342753,0.95158099,113690.0,113680.0,0.18559805]
[1752169343056,0.68856362,113690.0,113680.0,0.18559805]
[1752169343255,0.64119058,113690.0,113680.0,0.00975925]
[1752169343860,0.68856362,113690.0,113680.0,0.00975925]
[1752169344559,0.75983464,113690.0,113680.0,0.00975925]
[1752169345351,0.75983464,113690.0,113680.0,0.18559805]
[1752169345554,0.7124616,113690.0,113680.0,0.18559805]
[1752169346654,0.7124616,113690.0,113680.0,0.00975925]
[1752169347958,0.69397452,113690.0,113680.0,0.00975925]
[1752169348165,0.7130406,113690.0,113680.0,0.00975925]
[1752169348761,0.76041364,113690.0,113680.0,0.00975925]
[1752169348965,0.7130406,113690.0,113680.0,0.18559805]
[1752169350159,1.3269206,113690.0,113680.0,0.18559805]
[1752169350356,1.25564958,113690.0,113680.0,0.18159805]
[1752169350560,0.64176958,113690.0,113680.0,0.60794929]
[1752169350761,0.64176958,113690.0,113680.0,0.19259805]
[1752169350962,0.64176958,113690.0,113680.0,0.21359805]
[1752169352563,0.46594608,113690.0,113680.0,0.62494929]
[1752169352869,0.19576938,113690.0,113680.0,1.23878929]
[1752169353069,0.17731938,113690.0,113680.0,1.32238929]
[1752169353363,0.00149608,113690.0,113680.0,1.68318929]
[1752169353567,0.17731938,113690.0,113680.0,1.68318929]
[1752169353758,0.1758233,113690.0,113680.0,1.68318929]
[1752169354570,0.2203233,113690.0,113680.0,1.68318929]
[1752169355566,0.2203233,113690.0,113680.0,1.06934929]
[1752169355860,0.2203233,113690.0,113680.0,1.02814929]
[1752169356065,0.2203233,113690.0,113680.0,1.64186929]
[1752169358577,0.2192211,113700.0,113690.0,0.1758233]
[1752169358778,0.1758211,113700.0,113690.0,0.58717454]
[1752169358974,0.1758211,113700.0,113690.0,0.62927454]
[1752169359176,0.2179211,113700.0,113690.0,0.62927454]
[1752169359985,0.2179211,113700.0,113690.0,0.64227454]
[1752169360273,0.28118169,113700.0,113690.0,0.64227454]
[1752169360667,0.28118169,113700.0,113690.0,0.66127454]
[1752169362287,0.28118169,113700.0,113690.0,0.2499233]
[1752169362489,0.28118169,113700.0,113690.0,0.66127454]
[1752169362785,0.32148169,113700.0,113690.0,0.66127454]
[1752169362988,0.32232169,113700.0,113690.0,0.66127454]
[1752169363188,0.32232169,113700.0,113690.0,0.68762]
[1752169363491,0.94629145,113700.0,113690.0,0.64552]
[1752169363782,0.94629145,113700.0,113690.0,0.032]
[1752169364788,1.55981145,113700.0,113690.0,0.032]
[1752169365285,1.57905687,113700.0,113690.0,0.032]
[1752169365687,1.21825687,113700.0,113690.0,0.032]
[1752169365993,1.51579628,113700.0,113690.0,0.032]
[1752169366490,1.57905687,113700.0,113690.0,0.032]
[1752169367593,1.31588711,113700.0,113690.0,0.032]
[1752169367793,1.57905687,113700.0,113690.0,0.032]
[1752169368092,1.31588711,113700.0,113690.0,0.032]
[1752169368286,1.25262652,113700.0,113690.0,0.032]
[1752169368688,1.33166783,113700.0,113690.0,0.032]
[1752169368884,1.39485574,113700.0,113690.0,0.032]
[1752169369084,1.31581443,113700.0,113690.0,0.032]
[1752169371193,0.96550419,113700.0,113690.0,0.2078233]
[1752169371396,1.57886419,113700.0,113690.0,0.2078233]
[1752169371695,1.31569443,113700.0,113690.0,0.2078233]
[1752169372079,1.31565443,113700.0,113690.0,0.47099306]
[1752169372292,1.31565443,113700.0,113690.0,0.29516976]
[1752169372686,1.31565443,113700.0,113690.0,0.27016976]
[1752169372887,1.31565443,113700.0,113690.0,0.28016976]
[1752169373194,1.31565443,113700.0,113690.0,0.45599296]
[1752169373394,1.31565443,113700.0,113690.0,0.1858232]
[1752169373584,1.31565443,113700.0,113690.0,0.1928232]
[1752169374885,0.70233443,113700.0,113690.0,0.017]
[1752169375085,0.70280389,113700.0,113690.0,0.1928233]
[1752169375593,0.06791335,113700.0,113690.0,1.11083306]
[1752169375793,0.19556268,113700.0,113690.0,1.15263306]
[1752169376186,0.01975488,113700.0,113690.0,1.51343306]
[1752169376886,0.06717793,113700.0,113690.0,1.51343306]
[1752169377280,0.06717793,113700.0,113690.0,1.2502633]
[1752169377484,0.24298573,113700.0,113690.0,1.51343306]
[1752169378084,0.24298573,113700.0,113690.0,0.53939296]
[1752169378391,0.90815549,113700.0,113690.0,0.017]
[1752169378590,0.94839549,113700.0,113690.0,0.017]
[1752169379391,0.90097244,113700.0,113690.0,0.017]
[1752169379587,1.51409244,113700.0,113690.0,0.017]
[1752169379788,1.51409244,113700.0,113690.0,0.01]
[1752169379991,1.51409244,113700.0,113690.0,0.016]
[1752169380584,1.7772622,113700.0,113690.0,0.014]
[1752169381283,2.01636211,113700.0,113690.0,0.014]
[1752169381699,1.84045011,113700.0,113690.0,0.006]
[1752169381888,1.84045011,113700.0,113690.0,0.014]
[1752169382298,1.84045011,113700.0,113690.0,0.013]
[1752169382584,1.7772622,113700.0,113690.0,0.013]
[1752169382798,1.7772622,113700.0,113690.0,0.007]
[1752169382995,1.7772622,113700.0,113690.0,0.012]
[1752169383495,1.1641422,113700.0,113690.0,0.012]
[1752169383797,1.7772222,113700.0,113690.0,0.012]
[1752169384798,1.84041011,113700.0,113690.0,0.012]
[1752169386299,1.7772222,113700.0,113690.0,0.012]
[1752169386689,1.84048871,113700.0,113690.0,0.012]
[1752169387495,1.7772222,113700.0,113690.0,0.012]
[1752169387696,0.1758214,113690.0,113680.0,0.00175925]
[1752169387889,0.96510525,113690.0,113680.0,0.00175925]
[1752169388593,1.31489549,113690.0,113680.0,0.00175925]
[1752169388798,1.25163628,113690.0,113680.0,0.00175925]
[1752169388998,1.25163628,113690.0,113680.0,0.00975925]
[1752169389200,1.25163628,113690.0,113680.0,0.01475925]
[1752169389387,1.29903086,113690.0,113680.0,0.01475925]
[1752169390402,1.29991087,113690.0,113680.0,0.01475925]
[1752169390702,1.36882882,113690.0,113680.0,0.01475925]
[1752169390897,1.38465345,113690.0,113680.0,0.05705925]
[1752169391199,1.02385345,113690.0,113680.0,0.05705925]
[1752169391794,1.02381345,113690.0,113680.0,0.05705925]
[1752169393098,0.96055424,113690.0,113680.0,0.05705925]
[1752169393897,1.00798395,113690.0,113680.0,0.05705925]
[1752169394101,1.36878395,113690.0,113680.0,0.05705925]
[1752169394903,1.36874395,113690.0,113680.0,0.05705925]
[1752169395102,1.00794395,113690.0,113680.0,0.05705925]
[1752169395302,1.36874395,113690.0,113680.0,0.05705925]
[1752169395597,0.284086,113690.0,113680.0,0.23289585]
[1752169395797,0.24300599,113690.0,113680.0,0.85686561]
[1752169396101,0.24300599,113690.0,113680.0,0.89776561]